Workbook

Sheet 学前政府资助
A1: 附件1：
A2: 盱眙县2025年春季学期学前政府资助经费分配表
A3: 单位：人、元
A4: 序号 | B4: 单位名称 | C4: 生数 | D4: 资助人数 | E4: 资助金额 | G4: 序号 | H4: 单位名称 | I4: 生数 | J4: 资助人数 | K4: 资助金额
A5: 1 | B5: 官滩幼儿园 | C5: 254 | D5: 41 | E5: 20500 | G5: 25 | H5: 宣化社区幼儿园 | I5: 503 | J5: 35 | K5: =J5*500 -> 17500
A6: 2 | B6: 马坝幼儿园（含二园） | C6: 450 | D6: 48 | E6: 24000 | G6: 26 | H6: 盱城新星幼儿园 | I6: 297 | J6: 17 | K6: 8500
A7: 3 | B7: 古桑街道幼儿园 | C7: 43 | D7: 16 | E7: 8000 | G7: 27 | H7: 皇家花苑幼儿园 | I7: 415 | J7: 5 | K7: 2500
A8: 4 | B8: 穆店幼儿园 | C8: 152 | D8: 22 | E8: 11000 | G8: 28 | H8: 山水名都幼儿园 | I8: 367 | J8: 13 | K8: 6500
A9: 5 | B9: 维桥乡幼儿园 | C9: 180 | D9: 18 | E9: 9000 | G9: 29 | H9: 新舟幼儿园 | I9: 222 | J9: 31 | K9: 15500
A10: 6 | B10: 桂五幼儿园 | C10: 150 | D10: 36 | E10: 18000 | G10: 30 | H10: 管镇博艺幼儿园 | I10: 82 | J10: 37 | K10: 18500
A11: 7 | B11: 河桥幼儿园 | C11: 71 | D11: 25 | E11: 12500 | G11: 31 | H11: 铁佛金色童年幼儿园 | I11: 110 | J11: 52 | K11: 26000
A12: 8 | B12: 黄花塘幼儿园 | C12: 56 | D12: 12 | E12: 6000 | G12: 32 | H12: 天泉湖小博士幼儿园 | I12: 40 | J12: 5 | K12: 2500
A13: 9 | B13: 旧铺幼儿园 | C13: 142 | D13: 35 | E13: 17500 | H13: 民办普惠园小计 | I13: =SUM(I5:I12) -> 2036 | J13: =SUM(J5:J12) -> 195 | K13: =SUM(K5:K12) -> 97500
A14: 10 | B14: 明祖陵幼儿园 | C14: 112 | D14: 28 | E14: 14000
A15: 11 | B15: 天泉湖幼儿园（含古城） | C15: 115 | D15: 30 | E15: 15000
A16: 12 | B16: 鲍集幼儿园（含肖嘴） | C16: 244 | D16: 54 | E16: 27000
A17: 13 | B17: 仇集幼儿园 | C17: 54 | D17: 15 | E17: 7500
A18: 14 | B18: 观音寺幼儿园 | C18: 33 | D18: 14 | E18: 7000
A19: 15 | B19: 管镇幼儿园 | C19: 99 | D19: 21 | E19: 10500
A20: 16 | B20: 淮河幼儿园 | C20: 152 | D20: 24 | E20: 12000
A21: 17 | B21: 铁佛幼儿园 | C21: 32 | D21: 19 | E21: 9500
A22: 18 | B22: 兴隆幼儿园 | C22: 42 | D22: 21 | E22: 10500
A23: 19 | B23: 实验幼儿园（含一、三园、泽兰路、淮建路） | C23: 1458 | D23: 52 | E23: 26000
A24: 20 | B24: 五墩幼儿园（含一园、蓝天） | C24: 921 | D24: 60 | E24: 30000
A25: 21 | B25: 城南幼儿园（含临淮新寓） | C25: 397 | D25: 42 | E25: 21000
A26: 22 | B26: 开发区幼儿园（含南苑、北苑、迎春路） | C26: 596 | D26: 75 | E26: 37500
A27: 23 | B27: 盱城幼儿园 | C27: 524 | D27: 38 | E27: 19000
A28: 24 | B28: 机关幼儿园 | C28: 100 | D28: 12 | E28: 6000
B29: 公办园小计 | C29: =SUM(C5:C28) -> 6377 | D29: =SUM(D5:D28) -> 758 | E29: 379000 | H29: 公民办总计 | I29: =C29+I13 -> 8413 | J29: =D29+J13 -> 953 | K29: =E29+K13 -> 476500

Sheet 义教生活补助
A1: 附件2：
A2: 盱眙县2025年春季学期义务教育生活补助经费分配表
A3: 单位：人、元
A4: 序号 | B4: 小 学 | C4: 生数 | D4: 原建档立卡和低保人数 | E4: 非原建档、低保的寄宿人数 | F4: 非原建档、低保的非寄宿人数 | G4: 合计资助人数 | H4: 资助金额 | J4: 序号 | K4: 初 中 | L4: 生数 | M4: 其中原建档立卡和低保人数 | N4: 非原建档、低保的寄宿人数 | O4: 非原建档、低保的非寄宿人数 | P4: 合计资助人数 | Q4: 资助金额
A5: 1 | B5: 实验小学 | C5: 8211 | D5: 180 | E5: 0 | F5: 195 | G5: =D5+E5+F5 -> 375 | H5: =D5*750+E5*625+F5*500 -> 232500 | J5: 1 | K5: 第二中学 | L5: 4885 | M5: 152 | N5: 4 | O5: 161 | P5: =M5+N5+O5 -> 317 | Q5: =M5*1000+N5*750+O5*625 -> 255625
A6: 2 | B6: 城南小学 | C6: 1976 | D6: 106 | E6: 0 | F6: 120 | G6: =D6+E6+F6 -> 226 | H6: =D6*750+E6*625+F6*500 -> 139500 | J6: 2 | K6: 第三中学 | L6: 4498 | M6: 290 | N6: 23 | O6: 148 | P6: =M6+N6+O6 -> 461 | Q6: =M6*1000+N6*750+O6*625 -> 399750
A7: 3 | B7: 五墩小学 | C7: 6260 | D7: 221 | E7: 0 | F7: 164 | G7: 385 | H7: 247750 | J7: 3 | K7: 开发区初中 | L7: 960 | M7: 79 | N7: 0 | O7: 38 | P7: 117 | Q7: 102750
A8: 4 | B8: 马坝小学 | C8: 2836 | D8: 232 | E8: 0 | F8: 119 | G8: 351 | H8: 233500 | J8: 4 | K8: 第六中学 | L8: 360 | M8: 46 | N8: 4 | O8: 35 | P8: 85 | Q8: 70875
A9: 5 | B9: 维桥小学 | C9: 456 | D9: 41 | E9: 0 | F9: 47 | G9: 88 | H9: 54250 | J9: 5 | K9: 官滩中学 | L9: 520 | M9: 92 | N9: 11 | O9: 24 | P9: 127 | Q9: 115250
A10: 6 | B10: 三河小学 | C10: 231 | D10: 7 | E10: 0 | F10: 20 | G10: 27 | H10: 15250 | J10: 6 | K10: 维桥中学 | L10: 255 | M10: 39 | N10: 11 | O10: 9 | P10: 59 | Q10: 52875
A11: 7 | B11: 官滩小学 | C11: 655 | D11: 82 | E11: 0 | F11: 41 | G11: 123 | H11: 82000 | J11: 7 | K11: 马坝初中 | L11: 1695 | M11: 209 | N11: 9 | O11: 73 | P11: 291 | Q11: 261375
A12: 8 | B12: 穆店小学 | C12: 502 | D12: 64 | E12: 0 | F12: 22 | G12: 86 | H12: 59000 | J12: 8 | K12: 黄花塘中学 | L12: 82 | M12: 12 | N12: 0 | O12: 6 | P12: 18 | Q12: 15750
A13: 9 | B13: 旧铺小学 | C13: 752 | D13: 68 | E13: 0 | F13: 47 | G13: 115 | H13: 74500 | J13: 9 | K13: 旧铺中学 | L13: 407 | M13: 72 | N13: 16 | O13: 9 | P13: 97 | Q13: 89625
A14: 10 | B14: 黄花塘小学 | C14: 241 | D14: 42 | E14: 0 | F14: 29 | G14: 71 | H14: 46000 | J14: 10 | K14: 穆店中学 | L14: 321 | M14: 60 | N14: 11 | O14: 6 | P14: 77 | Q14: 72000
A15: 11 | B15: 古桑小学 | C15: 301 | D15: 38 | E15: 0 | F15: 43 | G15: 81 | H15: 50000 | J15: 11 | K15: 天泉湖中学 | L15: 458 | M15: 71 | N15: 32 | O15: 9 | P15: 112 | Q15: 100625
A16: 12 | B16: 桂五小学 | C16: 510 | D16: 69 | E16: 9 | F16: 46 | G16: 124 | H16: 80375 | J16: 12 | K16: 桂五中学 | L16: 362 | M16: 61 | N16: 31 | O16: 1 | P16: 93 | Q16: 84875
A17: 13 | B17: 天泉湖小学 | C17: 683 | D17: 82 | E17: 0 | F17: 68 | G17: 150 | H17: 95500 | J17: 13 | K17: 仇集中学 | L17: 214 | M17: 50 | N17: 17 | O17: 2 | P17: 69 | Q17: 64000
A18: 14 | B18: 河桥小学 | C18: 323 | D18: 38 | E18: 0 | F18: 52 | G18: 90 | H18: 54500 | J18: 14 | K18: 河桥中学 | L18: 280 | M18: 47 | N18: 19 | O18: 6 | P18: 72 | Q18: 65000
A19: 15 | B19: 仇集小学 | C19: 271 | D19: 59 | E19: 0 | F19: 16 | G19: 75 | H19: 52250 | J19: 15 | K19: 明祖陵中学 | L19: 240 | M19: 65 | N19: 9 | O19: 6 | P19: 80 | Q19: 75500
A20: 16 | B20: 淮河小学 | C20: 506 | D20: 59 | E20: 0 | F20: 26 | G20: 85 | H20: 57250 | J20: 16 | K20: 管镇中学 | L20: 370 | M20: 110 | N20: 22 | O20: 3 | P20: 135 | Q20: 128375
A21: 17 | B21: 希望小学 | C21: 350 | D21: 56 | E21: 0 | F21: 38 | G21: 94 | H21: 61000 | J21: 17 | K21: 鲍集中学 | L21: 505 | M21: 132 | N21: 27 | O21: 11 | P21: 170 | Q21: 159125
A22: 18 | B22: 管镇小学 | C22: 447 | D22: 106 | E22: 0 | F22: 39 | G22: 145 | H22: 99000 | J22: 18 | K22: 铁佛中学 | L22: 251 | M22: 58 | N22: 5 | O22: 20 | P22: 83 | Q22: 74250
A23: 19 | B23: 铁佛小学 | C23: 489 | D23: 67 | E23: 0 | F23: 59 | G23: 126 | H23: 79750 | J23: 19 | K23: 特校初中 | L23: 58 | M23: 13 | N23: 0 | O23: 45 | P23: 58 | Q23: 41125
A24: 20 | B24: 兴隆小学 | C24: 130 | D24: 35 | E24: 0 | F24: 23 | G24: 58 | H24: 37750 | J24: 20 | K24: 实验中学 | L24: 4956 | M24: 275 | N24: 14 | O24: 112 | P24: 401 | Q24: 355500
A25: 21 | B25: 鲍集小学 | C25: 900 | D25: 125 | E25: 0 | F25: 70 | G25: 195 | H25: 128750 | J25: 21 | K25: 第一中学 | L25: 2325 | M25: 68 | N25: 5 | O25: 46 | P25: 119 | Q25: 100500
A26: 22 | B26: 盱城小学 | C26: 1440 | D26: 70 | E26: 0 | F26: 72 | G26: 142 | H26: 88500 | J26: 22 | K26: 二中分校 | L26: 1225 | M26: 71 | N26: 1 | O26: 54 | P26: 126 | Q26: 105500
A27: 23 | B27: 开发区小学 | C27: 1222 | D27: 75 | E27: 0 | F27: 33 | G27: 108 | H27: 72750 | K27: 初中合计 | L27: =SUM(L4:L26) -> 25227 | M27: =SUM(M4:M26) -> 2072 | N27: 271 | O27: 824 | P27: 3167 | Q27: 2790250
A28: 24 | B28: 特校小学 | C28: 91 | D28: 12 | E28: 0 | F28: 79 | G28: 91 | H28: 48500
A29: 25 | B29: 第一小学 | C29: 3142 | D29: 57 | E29: 0 | F29: 42 | G29: 99 | H29: 63750
A30: 26 | B30: 宣化小学 | C30: 7266 | D30: 196 | E30: 0 | F30: 105 | G30: 301 | H30: 199500 | K30: 其中中小学原建档立卡提标部分 1035750 元由县财政负担。
B31: 小学合计 | C31: =SUM(C5:C30) -> 40191 | D31: =SUM(D5:D30) -> 2187 | E31: =SUM(E5:E30) -> 9 | F31: 1615 | G31: 3811 | H31: 2453375 | K31: 中小学总计 | L31: =C31+L27 -> 65418 | M31: =D31+M27 -> 4259 | N31: 280 | O31: 2439 | P31: 6978 | Q31: 5243625

Sheet 高中助学金
A1: 附件3：
A2: 盱眙县2025年春季学期普通高中国家助学金经费分配表
A3: 单位：人、元
A4: 单位名称 | B4: 生数 | C4: 资助人数 | D4: 资助金额
A5: 盱眙中学 | B5: 3204 | C5: 262 | D5: =C5*1150 -> 301300
A6: 马坝高中 | B6: 3036 | C6: 509 | D6: =C6*1150 -> 585350
A7: 第二高中 | B7: 2774 | C7: 436 | D7: 501400
A8: 新马中学 | B8: 3405 | C8: 339 | D8: 389850
A9: 都梁中学 | B9: 2359 | C9: 302 | D9: 347300
A10: 第一山中学 | B10: 2343 | C10: 291 | D10: 334650
A11: 合计 | B11: =SUM(B5:B10) -> 17121 | C11: =SUM(C5:C10) -> 2139 | D11: =SUM(D5:D10) -> 2459850

Sheet 中职助学金
A1: 附件4：
A2: 盱眙县2025年春季学期中职国家助学金经费分配表
A3: 单位：人、元
A4: 单位名称 | B4: 一二三年级 生数 | C4: 其中涉农专业人数 | D4: 资助人数 | E4: 资助金额
A5: 盱眙中等专业学校 | B5: 2525 | C5: 0 | D5: 459 | E5: =D5*1150 -> 527850
A6: 盱眙技师学院 | B6: 1561 | C6: 0 | D6: 215 | E6: =D6*1150 -> 247250
A7: 合 计 | B7: =SUM(B5:B6) -> 4086 | C7: =SUM(C5:C6) -> 0 | D7: 674 | E7: 775100
